bitfinex/quotes_ETHUSD_20260306
["timestamp","ask_amount","ask_price","bid_price","bid_amount"]
[1772784406509,1.57664021,2080.2,2079.5,0.0011]
[1772784406829,4.64783155,2080.4,2080.0,0.001]
[1772784406830,1.20269198,2080.4,2080.0,0.001]
[1772784407829,0.001,2080.4,2080.0,0.001]
[1772784414718,0.001,2080.4,2080.0,0.966]
[1772784416143,0.001,2080.4,2080.1,1.20186529]
[1772784416442,0.001,2080.4,2080.0,2.16788455]
[1772784418536,0.001,2080.4,2080.2,0.001]
[1772784434580,0.002,2080.6,2080.2,0.001]
[1772784435161,0.002,2080.9,2080.2,0.001]
[1772784435880,0.002,2080.9,2080.2,1.20280751]
[1772784436262,0.002,2080.9,2080.2,3.47792273]
[1772784436977,0.002,2080.9,2080.5,2.27511522]
[1772784437163,1e-08,2081.1,2080.6,0.995]
[1772784437867,1e-08,2081.1,2080.7,1.20151871]
[1772784443769,1e-08,2081.1,2080.6,2.19653044]
[1772784443973,1e-08,2081.1,2080.6,0.995]
[1772784444283,1e-08,2081.1,2080.6,2.19656571]
[1772784444483,1e-08,2081.1,2080.6,0.995]
[1772784444682,1e-08,2081.1,2080.5,1.20159105]
[1772784445794,0.002,2080.9,2080.5,1.20159105]
[1772784447497,0.002,2080.9,2080.6,0.02499895]
[1772784448300,0.002,2080.9,2080.4,2.21164746]
[1772784448471,0.002,2080.9,2080.4,1.01]
[1772784451003,0.002,2080.9,2080.2,0.001]
[1772784452781,1.20340323,2080.9,2080.2,0.001]
[1772784457707,1.20340323,2080.9,2080.4,0.001]
[1772784458112,0.002,2080.7,2080.4,0.001]
[1772784461285,0.002,2080.7,2080.2,0.001]
[1772784462092,1.95953254,2080.6,2079.9,0.001]
[1772784463214,1.20163422,2080.5,2079.9,0.001]
[1772784465200,0.002,2080.7,2079.9,0.001]
[1772784465901,1.96153254,2080.7,2079.9,0.001]
[1772784467392,1.20157646,2080.6,2079.9,0.001]
[1772784468495,1.106,2080.5,2079.9,0.001]
[1772784469526,1.20169198,2080.4,2080.1,0.001]
[1772784471336,4.80653689,2080.6,2080.1,0.001]
[1772784471630,1.11,2080.7,2080.1,0.001]
[1772784472832,0.002,2080.7,2080.1,0.001]
[1772784481552,0.001,2080.5,2080.1,0.001]
[1772784484324,0.001,2080.5,2080.1,0.012666]
[1772784485433,0.001,2080.5,2080.2,0.01166543]
[1772784485636,0.001,2080.5,2080.1,0.001]
[1772784492967,0.001,2080.5,2080.2,0.001]
[1772784493186,0.002,2080.3,2080.2,0.001]
[1772784505797,0.002,2080.3,2080.1,0.001]
[1772784508685,0.002,2080.3,2079.9,0.001]
[1772784517733,0.002,2080.3,2080.1,0.001]
[1772784522624,0.78604538,2080.3,2079.9,0.001]
[1772784523032,1.20180751,2080.2,2079.9,0.001]
[1772784523341,0.78404538,2080.1,2079.7,0.001]
[1772784523503,0.78404538,2080.1,2079.5,0.0011]
[1772784523928,3.08704535,2080.1,2079.5,0.0011]
[1772784524350,0.78404538,2080.1,2079.5,0.0011]
[1772784525033,1.20192307,2080.0,2079.5,0.0011]
[1772784525213,0.78404538,2079.7,2078.9,1.20252958]
[1772784525750,0.78404538,2079.7,2078.8,1.8579518]
[1772784525955,0.78404538,2079.5,2078.8,0.65538071]
[1772784526632,1.103,2079.4,2078.8,0.65538071]
[1772784526829,0.78404538,2079.3,2078.5,1.20274136]
[1772784527152,1.20238553,2079.2,2078.3,1.20290622]
[1772784528453,1.20224346,2079.5,2078.3,1.20290622]
[1772784529625,1.20224346,2079.5,2078.7,0.001]
[1772784529826,1.70707819,2079.6,2078.7,0.001]
[1772784530027,2.90923773,2079.6,2078.7,0.001]
[1772784530252,1.70707819,2079.6,2078.8,1.029]
[1772784531059,1.70707819,2079.6,2078.9,1.20255904]
[1772784536960,1.20390907,2080.1,2079.6,8.29292181]
[1772784537164,1.20390907,2080.1,2079.6,6.47956067]
[1772784537365,1.20390907,2080.1,2079.6,5.8664697]
[1772784537584,0.002,2080.1,2079.6,5.8664697]
[1772784538385,0.002,2080.1,2079.6,7.06861291]
[1772784542703,0.001,2079.9,2079.6,7.06861291]
[1772784544898,0.002,2080.1,2079.7,1.037]
[1772784546133,0.002,2080.1,2079.7,2.23904499]
[1772784552439,0.002,2080.6,2079.7,2.23904499]
[1772784552625,0.00100001,2080.5,2079.7,2.23904499]
[1772784554228,0.00100001,2080.5,2079.8,0.0011]
[1772784554647,0.001,2080.3,2079.8,0.0011]
[1772784556647,0.00100001,2080.2,2079.8,0.0011]
[1772784563358,1.20280752,2080.2,2079.8,0.0011]
[1772784564008,0.00100001,2080.2,2079.8,0.0011]
[1772784567757,0.00100001,2080.2,2080.0,0.0011]
[1772784570695,0.00100001,2080.2,2079.8,0.0011]
[1772784571587,0.001,2080.3,2079.8,0.0011]
[1772784573549,0.00100001,2080.2,2079.8,0.0011]
[1772784579272,1.20280752,2080.2,2080.0,0.001]
[1772784579489,0.002,2080.1,2080.0,0.001]
[1772784580707,0.002,2080.1,2079.8,0.0011]
[1772784591822,0.002,2080.1,2080.0,0.001]
[1772784600209,0.78667296,2080.1,2079.5,0.0011]
[1772784600404,2.30499997,2080.1,2079.5,0.0011]
[1772784600632,3.08967293,2080.1,2079.5,0.0011]
[1772784601222,2.30499997,2080.1,2079.5,0.0011]
[1772784602211,0.002,2080.1,2079.5,0.0011]
[1772784602740,1.122,2080.0,2079.5,0.0011]
[1772784603838,0.78667296,2080.1,2079.7,0.001]
[1772784604043,0.78667296,2080.1,2079.5,0.0011]
[1772784604044,0.78467296,2079.9,2079.5,0.0011]
[1772784604231,1.20203865,2079.8,2079.5,0.0011]
[1772784606423,4.81015463,2079.9,2079.5,0.0011]
[1772784606746,0.78467296,2079.6,2078.7,1.2036664]
[1772784607048,1.129,2079.5,2078.7,0.001]
[1772784607241,0.78467296,2079.4,2078.7,0.001]
[1772784607822,2.30299997,2079.7,2078.7,1.20367315]
[1772784608024,2.30299997,2079.8,2078.8,0.04810467]
[1772784608217,1.131,2079.6,2078.8,0.04810467]
[1772784608417,1.20220695,2079.6,2078.9,1.20255904]
[1772784608727,2.33407783,2079.8,2079.0,0.04810004]
[1772784608930,3.11875079,2079.8,2078.9,1.20255904]
[1772784609561,3.11875079,2079.8,2078.7,1.20362805]
[1772784609562,0.78467296,2079.6,2078.7,1.20362805]
[1772784610426,1.20221207,2079.5,2078.7,0.001]
[1772784613969,2.34121207,2079.5,2078.7,0.04910698]
[1772784614670,2.34209645,2079.7,2078.8,1.20261689]
[1772784614864,2.34209645,2079.7,2078.9,0.04810236]
[1772784616257,2.34209645,2079.7,2078.9,0.04920236]
[1772784616762,2.34209645,2079.7,2078.9,1.25172635]
[1772784616961,2.34209645,2079.7,2078.9,1.2517593]
[1772784617559,0.78467296,2079.6,2078.9,0.0011]
[1772784618383,2.34209645,2079.7,2078.9,0.0011]
[1772784619177,1.20209645,2079.7,2078.9,0.0011]
[1772784621977,1.98676941,2079.7,2078.9,0.0011]
[1772784626582,1.20209645,2079.7,2078.9,0.0011]
[1772784628461,1.20209645,2079.7,2079.1,0.0011]
[1772784628668,0.001,2079.5,2079.1,0.0011]
[1772784635903,0.001,2079.5,2079.1,0.01275195]
[1772784636473,0.001,2079.5,2079.2,1.20238553]
[1772784639194,0.001,2079.5,2079.1,4.81064213]
[1772784640969,0.001,2079.5,2079.3,0.0011]
[1772784642603,0.002,2079.9,2079.3,0.0011]
[1772784643370,0.002,2079.9,2079.3,0.01275508]
[1772784643775,0.002,2080.1,2079.3,0.01275508]
[1772784643999,0.002,2080.1,2079.3,0.73562446]
[1772784644203,0.002,2080.1,2079.3,0.33675197]
[1772784644601,0.002,2080.1,2079.3,3.75634784]
[1772784645199,1e-08,2080.4,2079.4,6.66342107]
[1772784645407,1e-08,2080.4,2079.7,3.41959587]
[1772784645698,0.002,2080.6,2079.8,0.72290942]
[1772784645904,0.002,2080.6,2079.8,4.14250529]
[1772784646099,1e-08,2081.1,2079.8,4.14250529]
[1772784646303,1e-08,2081.1,2079.8,0.72290942]
[1772784646676,1.20133248,2081.1,2079.7,3.41959587]
[1772784646878,1.20134774,2081.0,2079.7,3.48513187]
[1772784647112,1.20343246,2080.9,2079.8,1.20203865]
[1772784647300,1.20343246,2080.9,2079.9,1.106]
[1772784649189,0.002,2080.9,2080.0,1.20192307]
[1772784649501,0.002,2080.9,2080.0,1.21356999]
[1772784653450,0.002,2080.9,2079.6,1.108]
[1772784653721,0.002,2080.9,2079.7,1.21379222]
[1772784654926,0.002,2080.9,2080.0,0.0011]
[1772784655117,0.001,2080.7,2080.0,0.0011]
[1772784655726,0.001,2080.7,2080.0,0.01281765]
[1772784658720,0.001,2080.7,2080.1,1.20186529]
[1772784659031,0.001,2080.7,2080.2,0.01171652]
[1772784659523,0.001,2080.7,2080.2,1.12071652]
[1772784660701,0.001,2080.7,2080.0,0.0011]
[1772784663911,1.95917768,2080.6,2080.0,0.0011]
[1772784664423,2.29148798,2080.7,2080.0,0.0011]
[1772784664424,0.001,2080.7,2080.0,0.0011]
[1772784667148,0.001,2080.7,2080.2,0.0011]
[1772784667448,0.001,2080.6,2080.2,0.0011]
[1772784668921,0.78434507,2080.4,2079.8,0.0011]
[1772784669250,1.20198086,2079.9,2079.4,1e-08]
[1772784670336,0.78434507,2079.8,2079.1,0.0011]
[1772784671328,1.20209645,2079.7,2079.1,0.0011]
[1772784673485,1.20192307,2080.0,2079.1,0.0011]
[1772784673763,2.3329047,2080.1,2079.1,0.0011]
[1772784674340,1.20163422,2080.5,2079.1,0.0011]
[1772784675043,1.96269238,2080.4,2079.1,0.0011]
[1772784675239,1.20174974,2080.3,2079.1,0.0011]
[1772784675458,1.96269238,2080.1,2079.1,0.0011]
[1772784675771,3.09569238,2080.1,2079.1,0.0011]
[1772784676067,1.133,2080.1,2079.1,0.0011]
[1772784677439,1.20192307,2080.0,2079.1,0.0011]
[1772784679261,1.20192307,2080.0,2079.3,0.001]
[1772784679461,1.20192307,2080.0,2079.1,0.0011]
[1772784679462,1.96269238,2079.9,2079.1,0.0011]
[1772784679775,1.96269238,2079.6,2079.1,0.0011]
[1772784680256,1.136,2079.5,2078.7,0.001]
[1772784681488,1.20226988,2079.4,2078.7,0.001]
[1772784683483,2.33822887,2079.5,2078.7,0.001]
[1772784686459,2.33821284,2079.5,2078.7,0.001]
[1772784686791,1.20220064,2079.6,2078.7,0.001]
[1772784688265,1.141,2080.0,2078.7,0.001]
[1772784690407,1.20198086,2079.9,2078.7,0.001]
[1772784691093,1.20198086,2079.9,2079.1,0.0011]
[1772784691519,1.20298086,2079.9,2079.1,0.0011]
[1772784693515,5.45608757,2079.9,2079.1,0.0011]
[1772784694000,3.16567324,2079.9,2079.1,0.0011]
[1772784694202,5.45608757,2079.9,2079.1,0.0011]
[1772784694622,3.16567324,2079.9,2079.1,0.0011]
[1772784694802,0.77081492,2079.8,2079.1,0.0011]
[1772784697222,0.77081492,2079.6,2079.1,0.0011]
[1772784697891,0.77081492,2079.6,2078.9,0.0011]
[1772784699196,0.77081492,2079.4,2078.9,0.0011]
[1772784702627,1.97314262,2079.3,2078.9,0.0011]
[1772784703703,0.77081492,2079.2,2078.9,0.0011]
[1772784704103,0.77081492,2079.2,2079.1,0.0011]
[1772784704603,1.97320045,2079.2,2079.1,0.0011]
[1772784706006,0.77081492,2079.1,2078.9,0.0011]
[1772784706209,0.77081492,2079.1,2078.7,0.001]
[1772784706210,0.77081492,2078.9,2078.7,0.001]
[1772784706631,1.20261689,2078.8,2078.7,0.001]
[1772784706855,1.9734018,2078.9,2078.7,0.001]
[1772784707508,1.20258688,2078.9,2078.7,0.001]
[1772784709743,1.9734018,2078.9,2078.7,0.001]
[1772784710611,0.77081492,2078.9,2078.7,0.001]
[1772784711230,0.77081492,2079.3,2078.7,0.001]
[1772784711746,0.77081492,2079.2,2078.7,1.20367474]
[1772784712467,1.152,2079.5,2078.8,0.30876495]
[1772784712637,0.77081492,2079.4,2078.8,0.30876495]
[1772784713651,0.77081492,2079.4,2078.9,1.20255904]
[1772784713839,0.77081492,2079.4,2078.8,1.20258356]
[1772784715136,0.77081492,2079.4,2078.7,1.20365567]
[1772784715759,0.77081492,2079.4,2078.7,0.001]
[1772784715956,0.77081492,2079.4,2078.9,0.0011]
[1772784716142,0.001,2079.2,2078.9,0.0011]
[1772784719160,0.9210468,2079.7,2078.9,0.0011]
[1772784719454,0.001,2079.7,2078.9,0.0011]
[1772784720961,0.9210468,2079.7,2078.9,0.0011]
[1772784722465,0.9210468,2079.7,2078.9,0.01297677]
[1772784722841,0.001,2079.7,2078.9,0.01297677]
[1772784723876,0.9210468,2079.7,2078.9,0.01297677]
[1772784724164,0.9210468,2079.7,2079.0,1.2025012]
[1772784724353,0.9210468,2079.7,2079.1,1.08387562]
[1772784724553,0.9200468,2079.6,2079.1,0.01187562]
[1772784724749,0.9200468,2079.6,2079.0,1.2025012]
[1772784725640,0.001,2079.7,2079.0,1.2025012]
[1772784725641,0.001,2079.7,2079.1,0.01168701]
[1772784726263,0.001,2079.7,2079.2,1.20238553]
[1772784726656,0.001,2079.9,2079.2,1.20238553]
[1772784726860,0.9210468,2079.9,2079.2,1.20238553]
[1772784728060,0.001,2079.5,2079.2,1.20238553]
[1772784728570,0.001,2079.5,2079.1,0.0011]
[1772784728772,0.001,2079.9,2079.1,0.0011]
[1772784729548,0.27462951,2080.1,2079.1,0.0011]
[1772784729763,0.001,2080.6,2079.4,3.41959587]
[1772784730096,0.001,2080.6,2079.5,5.62004682]
[1772784730580,0.001,2080.6,2079.6,1.20215426]
[1772784730878,0.001,2080.6,2079.6,1.50671399]
[1772784731046,0.001,2080.6,2079.7,0.30455973]
[1772784731676,0.001,2080.6,2079.7,0.70347226]
[1772784732687,0.001,2080.6,2079.8,1.20203865]
[1772784733870,0.002,2080.8,2079.9,2.11139963]
[1772784734074,0.002,2080.8,2080.0,1.076]
[1772784734878,0.002,2080.8,2080.1,1.20186529]
[1772784735599,0.9220468,2080.8,2080.2,1.077]
[1772784736286,0.9220468,2080.8,2079.8,4.80746117]
[1772784736287,0.9220468,2080.8,2079.8,2.27903698]
[1772784736495,0.9220468,2080.8,2079.8,1.077]
[1772784736859,0.9200468,2080.6,2079.8,2.27902369]
[1772784737059,0.9200468,2080.6,2079.9,0.01164748]
[1772784737990,0.9200468,2080.6,2079.8,2.27902369]
[1772784738959,0.9200468,2080.4,2079.8,2.27902369]
[1772784739783,0.9210468,2080.4,2079.8,2.27902369]
[1772784741072,0.9210468,2080.4,2079.9,0.01164748]
[1772784741897,0.9210468,2080.4,2079.9,1.21358317]
[1772784743396,0.001,2080.4,2079.9,1.20193569]
[1772784743585,0.001,2080.4,2080.0,0.01164692]
[1772784743992,0.001,2080.4,2079.9,1.20193569]
[1772784745403,0.001,2080.4,2080.0,0.01164691]
[1772784746682,0.9210468,2080.4,2079.8,2.27898086]
[1772784746881,0.9210468,2080.4,2079.9,4.8076923]
[1772784747082,0.9210468,2080.4,2079.9,5.8906923]
[1772784747507,0.001,2080.4,2080.0,0.01169411]
[1772784748404,0.9220468,2080.8,2080.1,0.42297869]
[1772784748721,0.9220468,2080.8,2079.9,5.8906923]
[1772784750771,2.12352807,2080.8,2079.9,5.8906923]
[1772784751098,0.9200468,2080.7,2079.9,5.8906923]
[1772784751310,0.9200468,2080.7,2080.1,0.001]
[1772784751474,0.9220468,2080.8,2080.1,0.01264636]
[1772784751674,0.9220468,2080.6,2080.1,0.001]
[1772784752314,0.72689769,2080.7,2080.1,0.53545361]
[1772784753111,0.72689769,2080.7,2080.2,1.20180751]
[1772784755212,0.72689769,2080.7,2080.1,4.80823007]
[1772784755381,0.72689769,2080.6,2080.1,1.20286529]
[1772784757517,0.72689769,2080.5,2080.1,0.001]
[1772784757722,0.72689769,2080.5,2079.9,2.29195481]
[1772784759020,0.72689769,2080.5,2080.0,0.01164692]
[1772784760226,0.72689769,2080.4,2080.0,1.21354843]
[1772784764926,0.72689769,2080.4,2080.0,1.24997843]
[1772784765549,0.72689769,2080.4,2080.2,0.001]
[1772784771466,0.72689769,2080.3,2080.0,0.001]
[1772784771655,0.72689769,2080.3,2079.7,0.001]
[1772784771656,0.72689769,2080.2,2079.7,0.001]
[1772784771959,0.72689769,2080.2,2079.7,1.2030776]
[1772784772160,0.72689769,2080.0,2079.7,1.2030776]
[1772784772359,0.72689769,2080.0,2079.7,1.21474664]
[1772784772930,0.72689769,2080.4,2079.8,0.5248154]
[1772784773137,0.72689769,2080.4,2079.9,0.01166791]
[1772784773944,0.72689769,2080.4,2079.9,0.53596863]
[1772784774139,0.72689769,2080.4,2080.0,2.82622379]
[1772784774344,0.72689769,2080.4,2080.1,0.01166678]
[1772784775760,0.002,2080.5,2080.1,0.01166678]
[1772784776056,0.72889769,2080.5,2080.1,0.01166678]
[1772784776262,0.72889769,2080.5,2080.2,1.20180751]
[1772784776759,0.002,2080.5,2080.2,1.7245979]
[1772784778684,0.002,2080.5,2080.3,0.001]
[1772784779386,0.002,2080.4,2080.3,0.001]
[1772784779962,0.6710248,2080.4,2080.2,0.01166594]
[1772784780166,0.6690248,2080.2,2080.0,1.20291054]
[1772784780362,0.68269089,2080.4,2080.0,1.20291054]
[1772784780562,0.68269089,2080.4,2080.0,1.71520786]
[1772784780764,0.6710248,2080.4,2080.0,1.71520786]
[1772784780967,0.68069089,2080.3,2080.0,0.001]
[1772784781164,0.68069089,2080.3,2079.8,0.001]
[1772784781765,0.6690248,2080.3,2079.8,1.20303436]
[1772784782487,0.6690248,2080.3,2079.8,0.001]
[1772784782488,0.6690248,2080.1,2079.8,0.001]
[1772784784875,0.6690248,2080.0,2079.8,0.001]
[1772784785399,0.6690248,2080.2,2079.8,0.001]
[1772784785590,0.68069089,2080.2,2079.8,0.001]
[1772784786694,0.6690248,2080.2,2079.8,0.001]
[1772784786897,0.6690248,2080.1,2079.8,0.001]
[1772784787595,0.6690248,2080.3,2079.8,0.001]
[1772784787768,0.6690248,2080.3,2079.8,0.47994423]
[1772784788170,0.68069089,2080.3,2079.8,0.47994423]
[1772784789194,0.68069089,2080.3,2079.9,1.20198086]
[1772784789995,0.002,2080.4,2080.0,0.46989978]
[1772784790385,1.8843907,2080.4,2080.0,0.46989978]
[1772784790593,1.8843907,2080.4,2079.9,1.20198086]
[1772784790796,0.6690248,2080.3,2079.8,0.001]
[1772784791100,0.6690248,2080.1,2079.8,1.20303082]
[1772784791803,0.68069089,2080.3,2080.0,0.001]
[1772784791991,0.6710248,2080.2,2080.0,0.001]
[1772784792983,0.6690248,2080.0,2079.8,0.001]
[1772784793173,0.6690248,2079.9,2079.8,0.001]
[1772784793570,0.6690248,2079.9,2079.6,0.86163823]
[1772784793803,0.6690248,2079.9,2079.6,0.5757665]
[1772784794172,0.6690248,2079.9,2079.5,0.001]
[1772784795079,1.20203865,2079.8,2079.5,0.001]
[1772784795281,0.6690248,2079.7,2079.5,0.001]
[1772784795492,0.6690248,2079.9,2079.5,0.001]
[1772784798005,1.87101218,2079.9,2079.5,0.001]
[1772784798984,0.6690248,2079.8,2079.5,0.001]
[1772784801315,0.6690248,2079.8,2079.5,1.20321207]
[1772784802399,0.68069089,2080.0,2079.6,0.41694064]
[1772784802732,1.87094941,2080.0,2079.6,0.41694064]
[1772784803030,0.01166609,2079.9,2079.6,0.41694064]
[1772784803230,0.6690248,2080.0,2079.6,0.41694064]
[1772784803531,0.6690248,2080.0,2079.6,1.61904802]
[1772784803906,0.68069089,2080.0,2079.7,0.001]
[1772784804302,0.002,2079.9,2079.7,0.001]
[1772784804516,0.6710248,2079.9,2079.7,0.001]
[1772784808005,0.68069089,2079.8,2079.7,0.001]
[1772784808205,0.6690248,2079.8,2079.7,0.001]
[1772784811207,0.64698087,2079.7,2079.5,0.001]
[1772784813242,0.01366609,2079.9,2079.5,0.3758356]
[1772784813534,0.64698087,2079.8,2079.5,0.3758356]
[1772784816040,0.64698087,2079.8,2079.7,0.001]
[1772784816454,0.64698087,2079.7,2079.5,0.001]
[1772784819159,1.85099478,2079.9,2079.5,0.35742304]
[1772784819358,0.64898087,2079.9,2079.5,0.35742304]
[1772784820160,1.85097247,2079.9,2079.5,0.35742304]
[1772784821138,1.85097247,2079.9,2079.5,1.5596318]
[1772784821655,0.64898087,2079.9,2079.6,0.34720985]
[1772784823354,0.64898087,2079.9,2079.6,1.54935038]
[1772784823731,0.002,2079.9,2079.6,0.34720985]
[1772784824241,0.64898087,2079.9,2079.6,0.34720985]
[1772784824553,1.20398378,2079.9,2079.5,1.20317637]
[1772784824731,0.64698087,2079.8,2079.5,1.20317637]
[1772784824932,0.64698087,2079.8,2079.5,1.54148686]
[1772784825347,0.64698087,2079.8,2079.5,1.54151852]
[1772784826457,0.002,2079.9,2079.6,0.33254664]
[1772784827761,0.64898087,2079.9,2079.7,0.001]
[1772784833179,0.002,2079.9,2079.7,0.001]
[1772784833482,0.002,2079.9,2079.7,0.59404604]
[1772784834182,0.002,2079.9,2079.7,0.001]
[1772784834776,0.64898087,2079.9,2079.7,0.001]
[1772784837988,0.002,2079.9,2079.7,0.59404604]
[1772784839807,0.64898087,2079.9,2079.2,0.59404604]
[1772784839985,0.64898087,2079.9,2079.4,1.20226988]
[1772784840180,0.64898087,2079.9,2079.5,0.57966234]
[1772784840382,0.002,2079.9,2079.6,0.57966234]
[1772784841106,0.002,2079.7,2079.6,0.57966234]
[1772784841398,0.002,2079.9,2079.7,0.57966234]
[1772784842100,0.002,2079.9,2079.7,1.78172978]
[1772784842271,0.002,2079.9,2079.8,0.57966234]
[1772784843379,1.1577917,2079.9,2079.8,0.57966234]
[1772784843784,0.002,2080.2,2079.8,0.57966234]
[1772784844190,0.002,2080.2,2079.9,1.7816432]
[1772784844802,0.002,2080.2,2079.9,1.20198086]
[1772784845015,0.002,2080.2,2080.0,0.57966234]
[1772784845312,0.002,2080.2,2080.1,1.138]
[1772784845684,1.20380751,2080.2,2080.1,1.138]
[1772784845884,0.002,2080.2,2080.1,1.138]
[1772784849311,1.01416841,2080.2,2080.1,1.138]
[1772784851410,0.002,2080.4,2080.2,0.57966234]
[1772784852618,0.002,2080.4,2080.3,1.78141208]
[1772784853059,0.002,2080.5,2080.3,1.72166234]
[1772784854758,0.002,2080.5,2080.4,1.20169198]
[1772784856080,0.002,2080.5,2080.4,1.78135432]
[1772784857979,0.002,2080.5,2080.3,2.34370109]
[1772784858282,0.002,2080.5,2080.3,2.92336343]
[1772784859573,0.002,2080.5,2080.3,0.57966234]
[1772784859752,0.002,2080.5,2080.4,1.146]
[1772784859753,1.36760772,2080.5,2080.4,1.146]
[1772784860083,1e-08,2080.5,2080.4,1.72566234]
[1772784860247,0.65343185,2080.7,2080.4,1.72566234]
[1772784860448,0.65343185,2080.7,2080.5,0.57966234]
[1772784861198,0.60439979,2080.6,2080.1,0.57966234]
[1772784861493,0.60439979,2080.6,2080.5,1.147]
[1772784862054,0.66509794,2080.7,2080.5,1.147]
[1772784862386,0.65343185,2080.7,2080.5,1.147]
[1772784862587,1.25783164,2080.7,2080.5,1.147]
[1772784863289,2.45935289,2080.7,2080.5,1.147]
[1772784863777,0.61606588,2080.6,2080.0,0.001]
[1772784864851,0.61606588,2080.6,2080.1,1.15]
[1772784865459,0.60439979,2080.3,2080.1,1.15]
[1772784866787,0.60439979,2080.3,2080.1,1.151]
[1772784868761,1.80614971,2080.3,2080.1,1.151]
[1772784869380,0.60439979,2080.3,2080.1,1.151]
[1772784870070,0.002,2080.4,2080.1,1.151]
[1772784870374,0.56427406,2080.4,2080.1,1.151]
[1772784870565,1.76596881,2080.4,2080.1,1.151]
[1772784870765,0.56227406,2080.3,2080.1,1.151]
[1772784872367,0.00100001,2080.2,2080.1,1.151]
[1772784874881,0.00100001,2080.2,2080.1,2.91470304]
[1772784875256,0.002,2080.4,2080.1,2.91470304]
[1772784875458,0.002,2080.4,2080.2,0.56183775]
[1772784875964,0.56343331,2080.4,2080.1,1.151]
[1772784877082,0.5750994,2080.4,2080.1,1.151]
[1772784878165,1.77679138,2080.4,2080.3,0.001]
[1772784881970,0.002,2080.4,2080.3,0.56283775]
[1772784883369,0.002,2080.5,2080.4,0.56183775]
[1772784885467,0.56343331,2080.5,2080.3,1.159]
[1772784885882,1.76312529,2080.4,2080.3,1.159]
[1772784886063,1.76312529,2080.4,2080.1,0.001]
[1772784886487,0.56143331,2080.3,2080.1,0.001]
[1772784887396,0.56143331,2080.3,2080.2,1.159]
[1772784887599,0.56143331,2080.3,2080.1,0.001]
[1772784887901,0.56143331,2080.2,2080.1,1.16]
[1772784888468,0.002,2080.5,2080.2,0.56183775]
[1772784889390,1.2036352,2080.5,2080.2,0.56183775]
[1772784890503,1.2036352,2080.5,2080.0,0.001]
[1772784890504,0.5730994,2080.4,2080.0,0.001]
[1772784890704,0.5730994,2080.4,2080.0,1.161]
[1772784891427,0.5730994,2080.4,2080.3,0.001]
[1772784892185,0.5730994,2080.4,2079.8,0.001]
[1772784892704,0.56143331,2080.2,2079.8,0.31463362]
[1772784893291,0.56143331,2080.2,2079.9,1.161]
[1772784893986,0.56143331,2080.2,2079.8,0.001]
[1772784894703,0.56143331,2080.0,2079.8,0.001]
[1772784897394,1.76341417,2079.9,2079.8,0.001]
[1772784900511,1.76341417,2079.9,2079.5,0.001]
[1772784900512,0.52131567,2079.8,2079.5,0.001]
[1772784900817,0.52131567,2079.8,2079.3,1.164]
[1772784901014,0.52131567,2079.8,2079.3,1.4542487]
[1772784901511,0.52131567,2079.8,2079.4,0.28749935]
[1772784902411,1.72328183,2080.0,2079.5,0.28470864]
[1772784902816,0.53298176,2080.0,2079.5,0.28470864]
[1772784903019,1.72316734,2080.2,2079.5,0.28470864]
[1772784903523,1.2017687,2080.3,2079.5,0.28470864]
[1772784903708,5.32817741,2080.4,2079.5,0.28470864]
[1772784903709,1.72303452,2080.4,2079.5,0.28470864]
[1772784903907,0.52131567,2080.3,2079.5,0.28470864]
[1772784904093,0.52131567,2080.1,2079.7,0.001]
[1772784904292,1.72318825,2080.1,2079.7,0.001]
[1772784904506,1.72518825,2080.1,2079.7,0.001]
[1772784905215,0.002,2080.1,2079.7,0.28017865]
[1772784905418,1.20387127,2080.1,2079.7,0.28017865]
[1772784906111,0.002,2080.1,2079.7,0.28017865]
[1772784906617,0.002,2080.1,2079.8,1.4757548]
[1772784906803,0.002,2080.1,2079.8,0.27371615]
[1772784908626,0.002,2080.1,2079.9,1.47030073]
[1772784909008,0.002,2080.3,2080.0,0.26831987]
[1772784909213,0.002,2080.3,2080.1,1.43031987]
[1772784911221,0.002,2080.3,2080.1,2.63216451]
[1772784911521,0.002,2080.3,2080.1,1.43031987]
[1772784911714,0.002,2080.3,2080.1,1.164]
[1772784913522,0.52331567,2080.3,2080.0,1.20192054]
[1772784913729,0.52331567,2080.3,2080.2,1.165]
[1772784917129,0.52131567,2080.2,2079.7,0.001]
[1772784917299,1.20374974,2080.3,2079.7,1.44852217]
[1772784917300,1.72318096,2080.1,2079.7,1.44852217]
[1772784917701,1.72418096,2080.1,2079.7,0.24643012]
[1772784918198,1.72418096,2080.1,2079.7,1.44852257]
[1772784918529,0.52231567,2080.1,2079.8,1.166]
[1772784919512,1.72418163,2080.1,2079.8,1.166]
[1772784920014,0.52231567,2080.1,2079.8,1.166]
[1772784920212,0.52231567,2080.1,2079.8,2.60584623]
[1772784920418,0.001,2080.1,2079.9,0.23565646]
[1772784920704,0.002,2080.3,2079.9,0.23565646]
[1772784921123,0.47219407,2080.2,2079.7,1.20304871]
[1772784921329,0.47219407,2080.2,2079.7,2.36904871]
[1772784921525,0.52131567,2080.1,2079.7,2.36909298]
[1772784922431,1.72511009,2080.3,2079.8,0.28296256]
[1772784923017,1.72511009,2080.3,2079.7,1.167]
[1772784923018,0.52131567,2080.2,2079.7,1.167]
[1772784923412,1.72318096,2080.1,2079.7,1.167]
[1772784924742,1.72318096,2080.1,2079.7,2.36909307]
[1772784924913,1.72318096,2080.1,2079.7,1.167]
[1772784925235,0.52131567,2080.0,2079.5,0.001]
[1772784925939,1.72329653,2079.9,2079.5,0.001]
[1772784926344,1.72329653,2079.9,2079.6,1.168]
[1772784929023,0.52131567,2079.8,2079.6,1.168]
[1772784929213,0.52131567,2079.8,2079.5,0.001]
[1772784929419,0.52131567,2079.8,2079.3,0.001]
[1772784930048,0.48941893,2079.7,2079.3,0.001]